[Event "*** SCC Grand Prix: Titled Tuesday Blitz"]
[Site "Chess.com"]
[Date "2020.06.09"]
[Round "1"]
[White "Reader777"]
[Black "RusPakhom"]
[Result "1-0"]
[WhiteElo "2610"]
[BlackElo "2279"]
[TimeControl "180+1"]
[EndTime "9:02:33 PDT"]
[Termination "Reader777 won by resignation"]

1. d4 {[%clk 0:03:00.9]} 1... d6 {[%clk 0:02:59.8]} 2. c4 {[%clk 0:03:00.9]}
2... e5 {[%clk 0:03:00.1]} 3. Nc3 {[%clk 0:03:00.9]} 3... exd4 {[%clk
0:02:59.5]} 4. Qxd4 {[%clk 0:03:01.1]} 4... Nc6 {[%clk 0:02:59.9]} 5. Qd2 {[%clk
0:02:59.9]} 5... Be6 {[%clk 0:02:59.3]} 6. b3 {[%clk 0:02:59.5]} 6... Nf6 {[%clk
0:02:58.8]} 7. e4 {[%clk 0:02:56.8]} 7... Be7 {[%clk 0:02:58.6]} 8. Bb2 {[%clk
0:02:56]} 8... O-O {[%clk 0:02:58.9]} 9. Nf3 {[%clk 0:02:52.6]} 9... a6 {[%clk
0:02:57.8]} 10. Bd3 {[%clk 0:02:50.8]} 10... Re8 {[%clk 0:02:58]} 11. O-O {[%clk
0:02:50.1]} 11... Bf8 {[%clk 0:02:57]} 12. Nd5 {[%clk 0:02:48.3]} 12... Nd7
{[%clk 0:02:49]} 13. Ng5 {[%clk 0:02:36.3]} 13... Nc5 {[%clk 0:02:14]} 14. Bc2
{[%clk 0:02:32.7]} 14... Bd7 {[%clk 0:01:57.2]} 15. e5 {[%clk 0:02:25.6]} 15...
h6 {[%clk 0:01:55.5]} 16. Bh7+ {[%clk 0:02:21.8]} 1-0

[Event "*** SCC Grand Prix: Titled Tuesday Blitz"]
[Site "Chess.com"]
[Date "2020.06.09"]
[Round "1"]
[White "PavelShkapenko"]
[Black "Boninknights"]
[Result "1-0"]
[WhiteElo "2685"]
[BlackElo "2354"]
[TimeControl "180+1"]
[EndTime "9:02:54 PDT"]
[Termination "PavelShkapenko won by resignation"]

1. e4 {[%clk 0:03:00.3]} 1... Nc6 {[%clk 0:02:55.8]} 2. d4 {[%clk 0:02:57]} 2...
e5 {[%clk 0:02:54]} 3. Nf3 {[%clk 0:02:55.8]} 3... exd4 {[%clk 0:02:52.9]} 4.
Nxd4 {[%clk 0:02:56.3]} 4... Bc5 {[%clk 0:02:50]} 5. Be3 {[%clk 0:02:51.9]} 5...
Qf6 {[%clk 0:02:45.2]} 6. Nb5 {[%clk 0:02:22.2]} 6... Bxe3 {[%clk 0:02:42.1]} 7.
fxe3 {[%clk 0:02:22.7]} 7... Qh4+ {[%clk 0:02:19.6]} 8. g3 {[%clk 0:02:22.7]}
8... Qd8 {[%clk 0:02:18.1]} 9. Qg4 {[%clk 0:02:21.9]} 9... g6 {[%clk 0:02:06.8]}
10. Qf4 {[%clk 0:02:21]} 10... d6 {[%clk 0:02:06]} 11. N1c3 {[%clk 0:02:21]}
11... a6 {[%clk 0:02:05]} 12. Nd4 {[%clk 0:02:21]} 12... Ne5 {[%clk 0:01:59.6]}
13. Be2 {[%clk 0:02:20.5]} 13... Nf6 {[%clk 0:01:57.5]} 14. O-O-O {[%clk
0:02:16.6]} 14... O-O {[%clk 0:01:55]} 15. Rhf1 {[%clk 0:02:05.7]} 15... Bg4
{[%clk 0:01:49.1]} 16. Qxf6 {[%clk 0:01:59.5]} 1-0

[Event "*** SCC Grand Prix: Titled Tuesday Blitz"]
[Site "Chess.com"]
[Date "2020.06.09"]
[Round "1"]
[White "NewBornNow"]
[Black "colegiodemadrid"]
[Result "1-0"]
[WhiteElo "2704"]
[BlackElo "2371"]
[TimeControl "180+1"]
[EndTime "9:03:14 PDT"]
[Termination "NewBornNow won by resignation"]

1. e4 {[%clk 0:03:00.4]} 1... e5 {[%clk 0:02:56.4]} 2. Nf3 {[%clk 0:02:59.9]}
2... Nc6 {[%clk 0:02:56.4]} 3. Bc4 {[%clk 0:02:59.4]} 3... Nf6 {[%clk
0:02:55.6]} 4. d3 {[%clk 0:02:59.8]} 4... h6 {[%clk 0:02:50]} 5. c3 {[%clk
0:02:57.6]} 5... d6 {[%clk 0:02:46.9]} 6. O-O {[%clk 0:02:55.5]} 6... g5 {[%clk
0:02:46]} 7. d4 {[%clk 0:02:52.8]} 7... g4 {[%clk 0:02:45.3]} 8. Nfd2 {[%clk
0:02:48]} 8... exd4 {[%clk 0:02:43.6]} 9. f4 {[%clk 0:02:48]} 9... gxf3 {[%clk
0:02:32.5]} 10. Nxf3 {[%clk 0:02:39.7]} 10... Bg7 {[%clk 0:02:22.9]} 11. cxd4
{[%clk 0:02:39.5]} 11... Nxe4 {[%clk 0:02:18]} 12. Re1 {[%clk 0:02:37]} 12... d5
{[%clk 0:02:14.8]} 13. Bxd5 {[%clk 0:02:36.4]} 13... Qxd5 {[%clk 0:02:13.2]} 14.
Nc3 {[%clk 0:02:36]} 14... Bxd4+ {[%clk 0:02:12.6]} 15. Kh1 {[%clk 0:02:26.3]}
15... Be6 {[%clk 0:01:40]} 16. Rxe4 {[%clk 0:02:20.5]} 16... O-O-O {[%clk
0:01:35.8]} 17. Nxd5 {[%clk 0:02:19.1]} 17... Bxd5 {[%clk 0:01:34]} 18. Rxd4
{[%clk 0:02:16]} 18... Bxf3 {[%clk 0:01:31.9]} 19. Rxd8+ {[%clk 0:02:15.2]}
19... Rxd8 {[%clk 0:01:32.4]} 20. Qxf3 {[%clk 0:02:15.3]} 20... Nd4 {[%clk
0:01:32.8]} 21. Qf1 {[%clk 0:02:13.3]} 1-0

[Event "*** SCC Grand Prix: Titled Tuesday Blitz"]
[Site "Chess.com"]
[Date "2020.06.09"]
[Round "1"]
[White "coalescenet"]
[Black "chargemax23"]
[Result "0-1"]
[WhiteElo "2350"]
[BlackElo "2676"]
[TimeControl "180+1"]
[EndTime "9:03:25 PDT"]
[Termination "chargemax23 won by resignation"]

1. d4 {[%clk 0:02:30.5]} 1... Nf6 {[%clk 0:02:59.7]} 2. c4 {[%clk 0:02:21.9]}
2... d6 {[%clk 0:02:59.6]} 3. Nf3 {[%clk 0:02:21.2]} 3... Bg4 {[%clk 0:02:58.8]}
4. Nc3 {[%clk 0:02:21.6]} 4... Nbd7 {[%clk 0:02:57.9]} 5. Bg5 {[%clk 0:02:21.9]}
5... h6 {[%clk 0:02:57.2]} 6. Bh4 {[%clk 0:02:21.5]} 6... c6 {[%clk 0:02:56.3]}
7. e3 {[%clk 0:02:21.8]} 7... e5 {[%clk 0:02:55.7]} 8. Be2 {[%clk 0:02:21.5]}
8... Be7 {[%clk 0:02:54.6]} 9. O-O {[%clk 0:02:19.9]} 9... O-O {[%clk
0:02:54.1]} 10. b4 {[%clk 0:02:20.3]} 10... a5 {[%clk 0:02:48.5]} 11. a3 {[%clk
0:02:16.8]} 11... axb4 {[%clk 0:02:30]} 12. axb4 {[%clk 0:02:16.1]} 12... Qb6
{[%clk 0:02:30.6]} 13. Qb3 {[%clk 0:02:15.8]} 13... exd4 {[%clk 0:02:25.7]} 14.
exd4 {[%clk 0:02:14.2]} 14... Rxa1 {[%clk 0:02:24.2]} 15. Rxa1 {[%clk
0:02:12.8]} 15... Bxf3 {[%clk 0:02:21.9]} 16. c5 {[%clk 0:02:07]} 16... dxc5
{[%clk 0:02:20.8]} 17. dxc5 {[%clk 0:02:04.4]} 17... Nxc5 {[%clk 0:02:20.5]} 18.
Qc4 {[%clk 0:02:02.2]} 18... Bxe2 {[%clk 0:02:20.1]} 19. Qxe2 {[%clk 0:01:56.4]}
19... Ne6 {[%clk 0:02:17.7]} 20. Ne4 {[%clk 0:01:53.5]} 20... Qd4 {[%clk
0:02:08.5]} 21. Bxf6 {[%clk 0:01:49.4]} 21... Bxf6 {[%clk 0:02:08.3]} 22. Rb1
{[%clk 0:01:50]} 22... Rd8 {[%clk 0:02:03.2]} 23. g3 {[%clk 0:01:48.8]} 23...
Ng5 {[%clk 0:02:00.8]} 24. Nc5 {[%clk 0:01:47.1]} 24... Qd5 {[%clk 0:01:56.5]}
25. h4 {[%clk 0:01:45.5]} 25... Nf3+ {[%clk 0:01:56.1]} 0-1

[Event "*** SCC Grand Prix: Titled Tuesday Blitz"]
[Site "Chess.com"]
[Date "2020.06.09"]
[Round "1"]
[White "Monmoransy"]
[Black "AcsinteMatei"]
[Result "1-0"]
[WhiteElo "2645"]
[BlackElo "2324"]
[TimeControl "180+1"]
[EndTime "9:03:26 PDT"]
[Termination "Monmoransy won by resignation"]

1. e4 {[%clk 0:02:55]} 1... c6 {[%clk 0:02:59.3]} 2. d4 {[%clk 0:02:54.3]} 2...
d5 {[%clk 0:03:00.2]} 3. Nd2 {[%clk 0:02:54.5]} 3... g6 {[%clk 0:02:59.1]} 4. c3
{[%clk 0:02:53.5]} 4... Bg7 {[%clk 0:02:55.2]} 5. Bd3 {[%clk 0:02:53.1]} 5... h5
{[%clk 0:02:50.8]} 6. h3 {[%clk 0:02:47.9]} 6... Nh6 {[%clk 0:02:42.7]} 7. Ngf3
{[%clk 0:02:45.7]} 7... dxe4 {[%clk 0:02:35.6]} 8. Nxe4 {[%clk 0:02:45]} 8...
Bf5 {[%clk 0:02:35.1]} 9. Qe2 {[%clk 0:02:41.6]} 9... Nd7 {[%clk 0:02:34.2]} 10.
Nd6+ {[%clk 0:02:38]} 10... Kf8 {[%clk 0:02:32.7]} 11. Nxf5 {[%clk 0:02:19]}
11... Nxf5 {[%clk 0:02:32.3]} 12. Bf4 {[%clk 0:02:17.8]} 12... Bf6 {[%clk
0:02:13.9]} 13. O-O-O {[%clk 0:02:13.6]} 13... Qa5 {[%clk 0:02:10.7]} 14. Kb1
{[%clk 0:02:11.4]} 14... Kg7 {[%clk 0:02:11.2]} 15. g4 {[%clk 0:02:10.7]} 15...
hxg4 {[%clk 0:02:07.3]} 16. hxg4 {[%clk 0:02:10.4]} 16... Nd6 {[%clk 0:02:05]}
17. g5 {[%clk 0:02:07.7]} 17... b5 {[%clk 0:01:44]} 18. gxf6+ {[%clk 0:02:04.2]}
18... Nxf6 {[%clk 0:01:44.9]} 19. Qxe7 {[%clk 0:01:57]} 19... Nc4 {[%clk
0:01:41.1]} 20. Bxc4 {[%clk 0:01:52.2]} 20... bxc4 {[%clk 0:01:42]} 21. Be5
{[%clk 0:01:49.9]} 1-0

[Event "*** SCC Grand Prix: Titled Tuesday Blitz"]
[Site "Chess.com"]
[Date "2020.06.09"]
[Round "1"]
[White "Belka1989"]
[Black "Vaathi_Coming"]
[Result "1-0"]
[WhiteElo "2455"]
[BlackElo "2847"]
[TimeControl "180+1"]
[EndTime "9:03:32 PDT"]
[Termination "Belka1989 won by checkmate"]

1. e4 {[%clk 0:02:58.3]} 1... e5 {[%clk 0:02:58.1]} 2. d4 {[%clk 0:02:58.5]}
2... exd4 {[%clk 0:02:57.8]} 3. Bc4 {[%clk 0:02:59.1]} 3... Nc6 {[%clk
0:02:50.6]} 4. Nf3 {[%clk 0:02:59.4]} 4... Nf6 {[%clk 0:02:50.5]} 5. O-O {[%clk
0:02:59.3]} 5... Nxe4 {[%clk 0:02:50.2]} 6. Nc3 {[%clk 0:03:00]} 6... dxc3
{[%clk 0:02:47.3]} 7. Bxf7+ {[%clk 0:02:59.8]} 7... Kxf7 {[%clk 0:02:40.1]} 8.
Qd5+ {[%clk 0:03:00.3]} 8... Ke8 {[%clk 0:02:36.2]} 9. Re1 {[%clk 0:03:00.7]}
9... Be7 {[%clk 0:02:15.8]} 10. Rxe4 {[%clk 0:02:59.8]} 10... Rf8 {[%clk
0:02:12.7]} 11. Bg5 {[%clk 0:02:56.8]} 11... Rf7 {[%clk 0:02:10.3]} 12. Bxe7
{[%clk 0:02:41.4]} 12... Nxe7 {[%clk 0:02:09]} 13. Ng5 {[%clk 0:02:42]} 13...
Rf8 {[%clk 0:01:49.5]} 14. Rae1 {[%clk 0:02:41.5]} 14... cxb2 {[%clk 0:01:48.2]}
15. Qe5 {[%clk 0:02:08.1]} 15... b1=Q {[%clk 0:01:10.9]} 16. Qxe7+ {[%clk
0:02:07]} 16... Qxe7 {[%clk 0:01:07.2]} 17. Rxe7+ {[%clk 0:02:07.9]} 17... Kd8
{[%clk 0:01:07.9]} 18. Nf7+ {[%clk 0:02:08.5]} 18... Rxf7 {[%clk 0:01:08.4]} 19.
Re8# {[%clk 0:02:09.2]} 1-0

[Event "*** SCC Grand Prix: Titled Tuesday Blitz"]
[Site "Chess.com"]
[Date "2020.06.09"]
[Round "1"]
[White "GrigorGrigorov"]
[Black "frankshar"]
[Result "1-0"]
[WhiteElo "2740"]
[BlackElo "2389"]
[TimeControl "180+1"]
[EndTime "9:03:32 PDT"]
[Termination "GrigorGrigorov won by resignation"]

1. Nf3 {[%clk 0:03:00.9]} 1... d5 {[%clk 0:02:59.4]} 2. g3 {[%clk 0:03:00.5]}
2... e6 {[%clk 0:02:59.2]} 3. Bg2 {[%clk 0:03:00.3]} 3... c5 {[%clk 0:02:56.7]}
4. O-O {[%clk 0:02:58.5]} 4... Nc6 {[%clk 0:02:56.5]} 5. d4 {[%clk 0:02:58.3]}
5... Nf6 {[%clk 0:02:53.9]} 6. c4 {[%clk 0:02:57.9]} 6... Be7 {[%clk 0:02:53.5]}
7. cxd5 {[%clk 0:02:54.3]} 7... exd5 {[%clk 0:02:54.4]} 8. Nc3 {[%clk
0:02:49.7]} 8... O-O {[%clk 0:02:54]} 9. dxc5 {[%clk 0:02:49.2]} 9... Bxc5
{[%clk 0:02:53.5]} 10. Na4 {[%clk 0:02:48.4]} 10... Be7 {[%clk 0:02:52]} 11. Be3
{[%clk 0:02:47.9]} 11... Re8 {[%clk 0:02:50.5]} 12. Rc1 {[%clk 0:02:46.3]} 12...
Bg4 {[%clk 0:02:49.6]} 13. Re1 {[%clk 0:02:45.7]} 13... Bb4 {[%clk 0:02:38.2]}
14. Bd2 {[%clk 0:02:39.7]} 14... Bxd2 {[%clk 0:02:35.8]} 15. Qxd2 {[%clk
0:02:36.8]} 15... Ne4 {[%clk 0:02:35.1]} 16. Qf4 {[%clk 0:02:35.1]} 16... Qd7
{[%clk 0:02:20.6]} 17. Nc5 {[%clk 0:02:31.7]} 17... Nxc5 {[%clk 0:02:19.3]} 18.
Rxc5 {[%clk 0:02:32.2]} 18... Rad8 {[%clk 0:02:18.9]} 19. Nd4 {[%clk 0:02:07.9]}
19... Nxd4 {[%clk 0:02:10.6]} 20. Qxd4 {[%clk 0:02:05.6]} 20... Bxe2 {[%clk
0:01:54.7]} 21. Rxd5 {[%clk 0:02:00.2]} 21... Qc7 {[%clk 0:01:49.4]} 22. Rxe2
{[%clk 0:01:55.7]} 1-0

[Event "*** SCC Grand Prix: Titled Tuesday Blitz"]
[Site "Chess.com"]
[Date "2020.06.09"]
[Round "1"]
[White "Caracternin123"]
[Black "Shushik"]
[Result "1-0"]
[WhiteElo "2550"]
[BlackElo "2176"]
[TimeControl "180+1"]
[EndTime "9:03:54 PDT"]
[Termination "Caracternin123 won by checkmate"]

1. d4 {[%clk 0:03:00.9]} 1... d5 {[%clk 0:02:59.8]} 2. Bf4 {[%clk 0:03:00.6]}
2... Nf6 {[%clk 0:02:59.7]} 3. e3 {[%clk 0:03:00.7]} 3... c5 {[%clk 0:02:59.8]}
4. c3 {[%clk 0:03:00.5]} 4... Nc6 {[%clk 0:02:55]} 5. Nd2 {[%clk 0:03:00]} 5...
Bf5 {[%clk 0:02:54.2]} 6. Ngf3 {[%clk 0:02:58.7]} 6... e6 {[%clk 0:02:53.8]} 7.
Qb3 {[%clk 0:02:58.6]} 7... Qc8 {[%clk 0:02:45.7]} 8. Nh4 {[%clk 0:02:58]} 8...
Be4 {[%clk 0:02:42.7]} 9. Nxe4 {[%clk 0:02:57.9]} 9... Nxe4 {[%clk 0:02:40.9]}
10. Nf3 {[%clk 0:02:57.3]} 10... Be7 {[%clk 0:02:37.7]} 11. Be2 {[%clk
0:02:57.5]} 11... O-O {[%clk 0:02:37.3]} 12. O-O {[%clk 0:02:57.5]} 12... c4
{[%clk 0:02:37.1]} 13. Qc2 {[%clk 0:02:57.1]} 13... b5 {[%clk 0:02:37.1]} 14.
Nd2 {[%clk 0:02:55.1]} 14... Nxd2 {[%clk 0:02:32.9]} 15. Qxd2 {[%clk 0:02:56]}
15... b4 {[%clk 0:02:33.2]} 16. e4 {[%clk 0:02:55.4]} 16... Qd7 {[%clk
0:02:29.9]} 17. Bf3 {[%clk 0:02:47.7]} 17... dxe4 {[%clk 0:02:00.7]} 18. Bxe4
{[%clk 0:02:46.4]} 18... Bd6 {[%clk 0:02:00.8]} 19. Bxd6 {[%clk 0:02:18]} 19...
Qxd6 {[%clk 0:02:00.3]} 20. Qe2 {[%clk 0:02:18.3]} 20... Rac8 {[%clk 0:01:50.1]}
21. Qxc4 {[%clk 0:02:10.3]} 21... bxc3 {[%clk 0:01:39.6]} 22. bxc3 {[%clk
0:02:11.2]} 22... Ne7 {[%clk 0:01:28.2]} 23. Qd3 {[%clk 0:02:09.6]} 23... Qa3
{[%clk 0:01:24.1]} 24. Bxh7+ {[%clk 0:02:07.8]} 24... Kh8 {[%clk 0:01:23.1]} 25.
Qh3 {[%clk 0:02:07.1]} 25... Rxc3 {[%clk 0:01:16.7]} 26. Bd3+ {[%clk 0:02:07.1]}
26... Kg8 {[%clk 0:01:16]} 27. Qh7# {[%clk 0:02:08]} 1-0

[Event "*** SCC Grand Prix: Titled Tuesday Blitz"]
[Site "Chess.com"]
[Date "2020.06.09"]
[Round "1"]
[White "XiaoKangZhong"]
[Black "temus_galaktionov"]
[Result "1-0"]
[WhiteElo "2402"]
[BlackElo "2724"]
[TimeControl "180+1"]
[EndTime "9:04:23 PDT"]
[Termination "XiaoKangZhong won by resignation"]

1. e4 {[%clk 0:03:00.3]} 1... c6 {[%clk 0:03:00.9]} 2. d4 {[%clk 0:02:50.9]}
2... g6 {[%clk 0:03:01.8]} 3. Nc3 {[%clk 0:02:48.6]} 3... Bg7 {[%clk 0:03:02.4]}
4. Nf3 {[%clk 0:02:46.9]} 4... d6 {[%clk 0:03:03.3]} 5. h3 {[%clk 0:02:47]} 5...
Nd7 {[%clk 0:03:03.9]} 6. Bc4 {[%clk 0:02:43.3]} 6... e5 {[%clk 0:03:04.3]} 7.
O-O {[%clk 0:02:35.7]} 7... Ngf6 {[%clk 0:03:02]} 8. dxe5 {[%clk 0:02:31]} 8...
dxe5 {[%clk 0:03:02.9]} 9. Qd6 {[%clk 0:02:31.4]} 9... Bf8 {[%clk 0:02:59.5]}
10. Qd3 {[%clk 0:02:27.8]} 10... Bg7 {[%clk 0:02:59.7]} 11. Qd6 {[%clk
0:02:24.5]} 11... Qe7 {[%clk 0:02:59.5]} 12. Qxe7+ {[%clk 0:02:24.7]} 12... Kxe7
{[%clk 0:03:00.4]} 13. Be3 {[%clk 0:02:25.1]} 13... b6 {[%clk 0:02:56.8]} 14. a4
{[%clk 0:02:23.7]} 14... a6 {[%clk 0:02:52.4]} 15. b4 {[%clk 0:02:20.8]} 15...
Bb7 {[%clk 0:02:52.7]} 16. b5 {[%clk 0:02:19.9]} 16... axb5 {[%clk 0:02:51.5]}
17. axb5 {[%clk 0:02:20.8]} 17... cxb5 {[%clk 0:02:51.3]} 18. Bxb5 {[%clk
0:02:17.5]} 18... Rhc8 {[%clk 0:02:45.8]} 19. Nd5+ {[%clk 0:02:14.2]} 19... Nxd5
{[%clk 0:02:43.2]} 20. exd5 {[%clk 0:02:14.3]} 20... Bxd5 {[%clk 0:02:43.1]} 21.
Bxd7 {[%clk 0:01:43.7]} 21... Kxd7 {[%clk 0:02:44]} 22. Rad1 {[%clk 0:01:43.2]}
22... Kc6 {[%clk 0:02:20]} 23. Nd2 {[%clk 0:01:41.6]} 23... b5 {[%clk
0:02:18.6]} 24. Rb1 {[%clk 0:01:39.9]} 24... Ra2 {[%clk 0:02:17.5]} 25. Rfc1
{[%clk 0:01:39.3]} 25... f5 {[%clk 0:02:10.7]} 26. f3 {[%clk 0:01:37.7]} 26...
Bc4 {[%clk 0:02:04.9]} 27. Nxc4 {[%clk 0:01:32.4]} 27... bxc4 {[%clk 0:02:05.8]}
28. Rb6+ {[%clk 0:01:33.3]} 28... Kc7 {[%clk 0:02:04.4]} 29. Rcb1 {[%clk
0:01:30.1]} 29... Bf8 {[%clk 0:01:55.6]} 30. Rb7+ {[%clk 0:01:25.5]} 30... Kc6
{[%clk 0:01:45.1]} 31. R1b6+ {[%clk 0:01:21.1]} 31... Kd5 {[%clk 0:01:44.8]} 32.
Rd7+ {[%clk 0:01:21.3]} 1-0

[Event "*** SCC Grand Prix: Titled Tuesday Blitz"]
[Site "Chess.com"]
[Date "2020.06.09"]
[Round "1"]
[White "chessdjw"]
[Black "Aleksandar-Topalov"]
[Result "1-0"]
[WhiteElo "2734"]
[BlackElo "2382"]
[TimeControl "180+1"]
[EndTime "9:04:25 PDT"]
[Termination "chessdjw won by resignation"]

1. e4 {[%clk 0:02:51.5]} 1... e6 {[%clk 0:02:59.9]} 2. d4 {[%clk 0:02:50.1]}
2... d5 {[%clk 0:03:00.2]} 3. Nc3 {[%clk 0:02:49.5]} 3... Bb4 {[%clk 0:02:59.8]}
4. e5 {[%clk 0:02:46.3]} 4... Qd7 {[%clk 0:03:00.1]} 5. Qg4 {[%clk 0:02:44.4]}
5... Bf8 {[%clk 0:02:59.5]} 6. a3 {[%clk 0:02:34.7]} 6... b6 {[%clk 0:02:58.2]}
7. Bb5 {[%clk 0:02:29.1]} 7... c6 {[%clk 0:02:58.2]} 8. Ba4 {[%clk 0:02:29.7]}
8... Ba6 {[%clk 0:02:58.4]} 9. Nge2 {[%clk 0:02:29.2]} 9... Ne7 {[%clk
0:02:57.3]} 10. O-O {[%clk 0:02:28.3]} 10... Bc4 {[%clk 0:02:57.5]} 11. Re1
{[%clk 0:02:18.5]} 11... b5 {[%clk 0:02:57.6]} 12. Bb3 {[%clk 0:02:18.5]} 12...
Bxb3 {[%clk 0:02:57.8]} 13. cxb3 {[%clk 0:02:19.4]} 13... Na6 {[%clk 0:02:57.9]}
14. b4 {[%clk 0:02:17.1]} 14... Nb8 {[%clk 0:02:54.3]} 15. Nf4 {[%clk 0:02:14]}
15... g6 {[%clk 0:02:49.7]} 16. Nd3 {[%clk 0:02:13.7]} 16... h5 {[%clk
0:02:45.5]} 17. Qf3 {[%clk 0:02:10.8]} 17... Nf5 {[%clk 0:02:44.4]} 18. Ne2
{[%clk 0:02:07.5]} 18... a5 {[%clk 0:02:42.1]} 19. Bd2 {[%clk 0:02:05.2]} 19...
axb4 {[%clk 0:02:37.4]} 20. Bxb4 {[%clk 0:02:06.1]} 20... Na6 {[%clk 0:02:32.6]}
21. Bxf8 {[%clk 0:02:05.3]} 21... Kxf8 {[%clk 0:02:33]} 22. Rac1 {[%clk
0:02:01.1]} 22... Rc8 {[%clk 0:02:31.2]} 23. Rc3 {[%clk 0:01:55.2]} 23... b4
{[%clk 0:02:25.3]} 24. axb4 {[%clk 0:01:52.9]} 24... Qb7 {[%clk 0:02:25.2]} 25.
Rec1 {[%clk 0:01:43.1]} 25... Nxb4 {[%clk 0:02:25.2]} 26. Rb3 {[%clk 0:01:38.6]}
26... Nxd3 {[%clk 0:02:12.1]} 27. Rxb7 {[%clk 0:01:35.8]} 27... Nxc1 {[%clk
0:02:11.4]} 28. Nxc1 {[%clk 0:01:36.4]} 28... Ra8 {[%clk 0:02:09.9]} 29. Nb3
{[%clk 0:01:30.9]} 29... Kg7 {[%clk 0:02:08.6]} 30. h3 {[%clk 0:01:26]} 30...
Ra2 {[%clk 0:02:05.6]} 31. g4 {[%clk 0:01:21.4]} 31... hxg4 {[%clk 0:02:04]} 32.
hxg4 {[%clk 0:01:22.3]} 32... Nh6 {[%clk 0:01:57.9]} 33. Qf6+ {[%clk 0:01:20.4]}
33... Kh7 {[%clk 0:01:58.2]} 34. g5 {[%clk 0:01:07.3]} 1-0

[Event "*** SCC Grand Prix: Titled Tuesday Blitz"]
[Site "Chess.com"]
[Date "2020.06.09"]
[Round "1"]
[White "PlayChessSimple"]
[Black "parnali1611"]
[Result "1-0"]
[WhiteElo "2492"]
[BlackElo "2025"]
[TimeControl "180+1"]
[EndTime "9:04:31 PDT"]
[Termination "PlayChessSimple won by resignation"]

1. e4 {[%clk 0:03:00.9]} 1... e5 {[%clk 0:02:59.9]} 2. Nf3 {[%clk 0:02:59.2]}
2... Nc6 {[%clk 0:03:00.4]} 3. Nc3 {[%clk 0:02:59.8]} 3... Nf6 {[%clk 0:02:59]}
4. Bb5 {[%clk 0:02:59.6]} 4... Bb4 {[%clk 0:02:58.3]} 5. O-O {[%clk 0:02:59.1]}
5... O-O {[%clk 0:02:57.6]} 6. d3 {[%clk 0:02:59.7]} 6... Bxc3 {[%clk
0:02:57.1]} 7. bxc3 {[%clk 0:02:59.5]} 7... d6 {[%clk 0:02:57.1]} 8. Re1 {[%clk
0:02:59.9]} 8... Qe7 {[%clk 0:02:56.8]} 9. d4 {[%clk 0:02:56.6]} 9... Bg4 {[%clk
0:02:53.7]} 10. h3 {[%clk 0:02:49.9]} 10... Bxf3 {[%clk 0:02:53.3]} 11. Qxf3
{[%clk 0:02:49]} 11... exd4 {[%clk 0:02:53.2]} 12. Bxc6 {[%clk 0:02:48.9]} 12...
bxc6 {[%clk 0:02:52.5]} 13. cxd4 {[%clk 0:02:49.1]} 13... c5 {[%clk 0:02:48.6]}
14. dxc5 {[%clk 0:02:43.5]} 14... Qe5 {[%clk 0:02:48]} 15. Bf4 {[%clk
0:02:18.8]} 15... Qxc5 {[%clk 0:02:46.8]} 16. e5 {[%clk 0:02:18.6]} 16... dxe5
{[%clk 0:02:41.6]} 17. Bxe5 {[%clk 0:02:18.3]} 17... Nd5 {[%clk 0:02:39]} 18.
Rad1 {[%clk 0:02:06.1]} 18... c6 {[%clk 0:02:35.8]} 19. Qg3 {[%clk 0:02:05.6]}
19... f6 {[%clk 0:02:27.5]} 20. Bd6 {[%clk 0:02:05.4]} 20... Qxc2 {[%clk
0:02:26.9]} 21. Bxf8 {[%clk 0:01:59.9]} 21... Rxf8 {[%clk 0:02:27.8]} 22. Qd6
{[%clk 0:01:55.2]} 22... Nc3 {[%clk 0:02:24.1]} 23. Qe6+ {[%clk 0:01:50.7]}
23... Kh8 {[%clk 0:02:22.8]} 24. Rd8 {[%clk 0:01:43.7]} 1-0

[Event "*** SCC Grand Prix: Titled Tuesday Blitz"]
[Site "Chess.com"]
[Date "2020.06.09"]
[Round "1"]
[White "woodhy"]
[Black "kirillshevchenko"]
[Result "0-1"]
[WhiteElo "2452"]
[BlackElo "2930"]
[TimeControl "180+1"]
[EndTime "9:04:56 PDT"]
[Termination "kirillshevchenko won by resignation"]

1. e4 {[%clk 0:02:57.1]} 1... c5 {[%clk 0:02:59.9]} 2. Nf3 {[%clk 0:02:54.9]}
2... d6 {[%clk 0:03:00.3]} 3. d4 {[%clk 0:02:55.5]} 3... cxd4 {[%clk 0:03:01.2]}
4. Nxd4 {[%clk 0:02:56]} 4... Nf6 {[%clk 0:03:01.9]} 5. f3 {[%clk 0:02:55.1]}
5... e5 {[%clk 0:03:01.3]} 6. Bb5+ {[%clk 0:02:53.8]} 6... Nbd7 {[%clk
0:03:00.9]} 7. Nf5 {[%clk 0:02:51.2]} 7... d5 {[%clk 0:03:00.6]} 8. exd5 {[%clk
0:02:49.6]} 8... a6 {[%clk 0:03:01]} 9. Ba4 {[%clk 0:02:48.7]} 9... b5 {[%clk
0:02:58.9]} 10. Bb3 {[%clk 0:02:38.3]} 10... Nc5 {[%clk 0:02:58.6]} 11. Ne3
{[%clk 0:02:37.6]} 11... Nh5 {[%clk 0:02:50.2]} 12. O-O {[%clk 0:02:23.8]} 12...
Nxb3 {[%clk 0:02:31.9]} 13. axb3 {[%clk 0:02:18.8]} 13... Bc5 {[%clk 0:02:32.4]}
14. Nc3 {[%clk 0:02:13.5]} 14... f5 {[%clk 0:02:30.3]} 15. Kh1 {[%clk
0:01:08.6]} 15... f4 {[%clk 0:01:44.4]} 16. Ng4 {[%clk 0:00:37.8]} 16... Ng3+
{[%clk 0:01:43.9]} 17. hxg3 {[%clk 0:00:32.6]} 17... fxg3 {[%clk 0:01:44.8]} 18.
Nf2 {[%clk 0:00:07.9]} 0-1

[Event "*** SCC Grand Prix: Titled Tuesday Blitz"]
[Site "Chess.com"]
[Date "2020.06.09"]
[Round "1"]
[White "queen_iryna"]
[Black "TomsKantans"]
[Result "0-1"]
[WhiteElo "2309"]
[BlackElo "2630"]
[TimeControl "180+1"]
[EndTime "9:04:57 PDT"]
[Termination "TomsKantans won by resignation"]

1. d4 {[%clk 0:03:00.2]} 1... Nf6 {[%clk 0:02:55.8]} 2. Bg5 {[%clk 0:02:58.7]}
2... Ne4 {[%clk 0:02:50.8]} 3. Bf4 {[%clk 0:02:58.5]} 3... c5 {[%clk 0:02:49.7]}
4. f3 {[%clk 0:02:58]} 4... Nf6 {[%clk 0:02:42.8]} 5. dxc5 {[%clk 0:02:57.1]}
5... e5 {[%clk 0:02:42.9]} 6. Bxe5 {[%clk 0:02:41.7]} 6... Bxc5 {[%clk
0:02:42.2]} 7. e4 {[%clk 0:02:34.5]} 7... Qb6 {[%clk 0:02:38.6]} 8. Nh3 {[%clk
0:02:12.8]} 8... d5 {[%clk 0:01:56]} 9. Bxf6 {[%clk 0:02:05.4]} 9... Bxh3 {[%clk
0:01:31.4]} 10. Qxd5 {[%clk 0:01:35]} 10... Be6 {[%clk 0:01:28.6]} 11. Bb5+
{[%clk 0:01:27.8]} 11... Nc6 {[%clk 0:01:22.4]} 12. Bxc6+ {[%clk 0:01:03.6]}
12... bxc6 {[%clk 0:01:20]} 13. Qe5 {[%clk 0:00:58.7]} 13... gxf6 {[%clk
0:01:17]} 14. Qxf6 {[%clk 0:00:58.6]} 14... Bd4 {[%clk 0:00:56]} 0-1